[Event "*** Titled Tuesday Blitz"]
[Site "Chess.com"]
[Date "2020.04.28"]
[Round "2"]
[White "tufferguy"]
[Black "Ashedu66"]
[Result "1-0"]
[WhiteElo "2395"]
[BlackElo "2098"]
[TimeControl "180+1"]
[EndTime "10:18:02 PDT"]
[Termination "tufferguy won on time"]

1. e4 {[%clk 0:03:00.9]} 1... e5 {[%clk 0:02:58.5]} 2. Nf3 {[%clk 0:03:00.1]}
2... Nc6 {[%clk 0:02:58.6]} 3. d4 {[%clk 0:02:59.9]} 3... exd4 {[%clk
0:02:58.1]} 4. Nxd4 {[%clk 0:03:00.8]} 4... Bb4+ {[%clk 0:02:55.8]} 5. c3 {[%clk
0:02:55.7]} 5... Be7 {[%clk 0:02:54.9]} 6. Nxc6 {[%clk 0:02:12.1]} 6... bxc6
{[%clk 0:02:54]} 7. Bd3 {[%clk 0:02:09]} 7... Nf6 {[%clk 0:02:51.7]} 8. e5
{[%clk 0:02:07.3]} 8... Nd5 {[%clk 0:02:51.2]} 9. O-O {[%clk 0:02:07.2]} 9...
O-O {[%clk 0:02:48.6]} 10. Qh5 {[%clk 0:02:03.1]} 10... g6 {[%clk 0:02:47.9]}
11. Qf3 {[%clk 0:01:53.1]} 11... Bg5 {[%clk 0:02:12.3]} 12. Nd2 {[%clk
0:01:45.5]} 12... d6 {[%clk 0:01:42.5]} 13. exd6 {[%clk 0:01:37.2]} 13... cxd6
{[%clk 0:01:41]} 14. Ne4 {[%clk 0:01:36.8]} 14... Bxc1 {[%clk 0:01:37.4]} 15.
Raxc1 {[%clk 0:01:35.2]} 15... f5 {[%clk 0:01:34.4]} 16. Nd2 {[%clk 0:01:27.7]}
16... Qf6 {[%clk 0:01:16.8]} 17. Bc4 {[%clk 0:01:23.5]} 17... Be6 {[%clk
0:01:14.4]} 18. Rfe1 {[%clk 0:01:23.1]} 18... Bf7 {[%clk 0:01:14.2]} 19. Nb3
{[%clk 0:01:17.5]} 19... Rab8 {[%clk 0:00:29.3]} 20. Rcd1 {[%clk 0:00:42.7]}
20... Kg7 {[%clk 0:00:27.4]} 21. Nd4 {[%clk 0:00:32.6]} 21... Rxb2 {[%clk
0:00:22.1]} 22. Nxc6 {[%clk 0:00:31.6]} 22... Nb6 {[%clk 0:00:18.9]} 23. Bxf7
{[%clk 0:00:21.8]} 23... Rxf7 {[%clk 0:00:18.5]} 24. Nd4 {[%clk 0:00:19.3]}
24... Re7 {[%clk 0:00:11.8]} 25. h3 {[%clk 0:00:15.2]} 25... Nc4 {[%clk
0:00:08.9]} 26. Qc6 {[%clk 0:00:09]} 26... Ne5 {[%clk 0:00:07]} 27. Qc8 {[%clk
0:00:08.2]} 27... Qg5 {[%clk 0:00:04.4]} 28. Qa8 {[%clk 0:00:03.1]} 28... Rf7
{[%clk 0:00:02.5]} 29. Ne6+ {[%clk 0:00:01.8]} 29... Kh6 {[%clk 0:00:02.3]} 30.
Nxg5 {[%clk 0:00:02.7]} 30... Kxg5 {[%clk 0:00:02.5]} 31. Qd5 {[%clk 0:00:03.6]}
31... f4 {[%clk 0:00:01.9]} 32. h4+ {[%clk 0:00:04.5]} 32... Kg4 {[%clk
0:00:01.6]} 33. Qxd6 {[%clk 0:00:05.1]} 33... f3 {[%clk 0:00:01.1]} 34. g3
{[%clk 0:00:05.3]} 1-0

[Event "*** Titled Tuesday Blitz"]
[Site "Chess.com"]
[Date "2020.04.28"]
[Round "2"]
[White "NIGWAPO"]
[Black "Duhless"]
[Result "0-1"]
[WhiteElo "2594"]
[BlackElo "3105"]
[TimeControl "180+1"]
[EndTime "10:18:04 PDT"]
[Termination "Duhless won by resignation"]

1. Nf3 {[%clk 0:03:00.9]} 1... d5 {[%clk 0:02:57.1]} 2. c4 {[%clk 0:03:00.9]}
2... d4 {[%clk 0:02:56.1]} 3. b4 {[%clk 0:02:59.4]} 3... c5 {[%clk 0:02:55.8]}
4. g3 {[%clk 0:02:55.8]} 4... Nf6 {[%clk 0:02:55.1]} 5. Bg2 {[%clk 0:02:54.9]}
5... Qc7 {[%clk 0:02:53.8]} 6. O-O {[%clk 0:02:53.3]} 6... e5 {[%clk 0:02:52.3]}
7. b5 {[%clk 0:02:51.8]} 7... Bd6 {[%clk 0:02:45.8]} 8. d3 {[%clk 0:02:51.8]}
8... Nbd7 {[%clk 0:02:44.5]} 9. Bg5 {[%clk 0:02:51.5]} 9... h6 {[%clk
0:02:40.5]} 10. Bxf6 {[%clk 0:02:51.7]} 10... Nxf6 {[%clk 0:02:41.4]} 11. Nfd2
{[%clk 0:02:52.2]} 11... Bf5 {[%clk 0:02:38.4]} 12. a4 {[%clk 0:02:52.1]} 12...
Rd8 {[%clk 0:02:36.4]} 13. a5 {[%clk 0:02:52.4]} 13... O-O {[%clk 0:02:35.8]}
14. Na3 {[%clk 0:02:43.1]} 14... Qc8 {[%clk 0:02:30.1]} 15. Qa4 {[%clk
0:02:35.8]} 15... Rfe8 {[%clk 0:02:28.2]} 16. Ne4 {[%clk 0:02:32.5]} 16... Nxe4
{[%clk 0:02:26.2]} 17. Bxe4 {[%clk 0:02:33.2]} 17... Bh3 {[%clk 0:02:12.9]} 18.
Rfe1 {[%clk 0:02:32.7]} 18... Kh8 {[%clk 0:02:11.2]} 19. Nc2 {[%clk 0:02:31.2]}
19... f5 {[%clk 0:02:09.2]} 20. Bd5 {[%clk 0:02:30.9]} 20... e4 {[%clk
0:02:07.1]} 21. Rad1 {[%clk 0:02:28.5]} 21... e3 {[%clk 0:01:36.2]} 22. fxe3
{[%clk 0:02:21.7]} 22... dxe3 {[%clk 0:01:37.1]} 23. d4 {[%clk 0:02:20.4]} 23...
f4 {[%clk 0:01:27.9]} 24. dxc5 {[%clk 0:02:20.5]} 24... Bxc5 {[%clk 0:01:22]}
25. Bf3 {[%clk 0:02:15.1]} 25... Qf5 {[%clk 0:01:08.8]} 26. b6 {[%clk
0:02:08.2]} 26... axb6 {[%clk 0:01:04.7]} 27. axb6 {[%clk 0:02:07.5]} 27... Qg5
{[%clk 0:01:03.2]} 28. Rd5 {[%clk 0:01:53.1]} 28... Qe7 {[%clk 0:00:39]} 29.
Red1 {[%clk 0:01:48.3]} 29... Be6 {[%clk 0:00:23.6]} 30. Rxd8 {[%clk 0:01:38.2]}
30... Rxd8 {[%clk 0:00:24.5]} 31. Rxd8+ {[%clk 0:01:37.9]} 31... Qxd8 {[%clk
0:00:24.5]} 32. Kg2 {[%clk 0:01:38.3]} 32... fxg3 {[%clk 0:00:22]} 33. hxg3
{[%clk 0:01:38.1]} 33... Bxb6 {[%clk 0:00:20.7]} 34. Qb3 {[%clk 0:01:31.6]}
34... Qc7 {[%clk 0:00:16.6]} 35. Nxe3 {[%clk 0:01:30.4]} 35... Qc5 {[%clk
0:00:16.6]} 36. Kf2 {[%clk 0:01:19.8]} 36... Bxc4 {[%clk 0:00:14.9]} 37. Qc3
{[%clk 0:01:19.9]} 37... Ba6 {[%clk 0:00:14.7]} 38. Qd2 {[%clk 0:01:17.5]} 38...
Qd4 {[%clk 0:00:14.4]} 39. Qxd4 {[%clk 0:01:16.1]} 39... Bxd4 {[%clk 0:00:14]}
40. Be4 {[%clk 0:01:16.6]} 40... Kg8 {[%clk 0:00:07.8]} 41. Kf3 {[%clk
0:01:16.8]} 41... Bxe3 {[%clk 0:00:06.6]} 42. Kxe3 {[%clk 0:01:16.7]} 42... Kf7
{[%clk 0:00:07.5]} 43. Kf4 {[%clk 0:01:16.2]} 43... Kf6 {[%clk 0:00:06.8]} 44.
Bf3 {[%clk 0:01:15.6]} 44... b5 {[%clk 0:00:05.8]} 45. e4 {[%clk 0:01:14.6]}
45... g5+ {[%clk 0:00:05.6]} 46. Ke3 {[%clk 0:01:14]} 46... b4 {[%clk
0:00:03.8]} 47. Kd4 {[%clk 0:01:14]} 47... Ke6 {[%clk 0:00:03.2]} 48. Bd1 {[%clk
0:01:13]} 48... Ke7 {[%clk 0:00:02.8]} 49. Bb3 {[%clk 0:01:12.7]} 49... Bc8
{[%clk 0:00:03.3]} 50. Kc5 {[%clk 0:01:12.7]} 50... Be6 {[%clk 0:00:03.3]} 51.
Kxb4 {[%clk 0:01:09.1]} 51... Bxb3 {[%clk 0:00:02.6]} 52. Kxb3 {[%clk
0:01:09.7]} 52... h5 {[%clk 0:00:02]} 53. Kc4 {[%clk 0:01:09.3]} 53... h4 {[%clk
0:00:02.5]} 54. gxh4 {[%clk 0:01:09.4]} 54... gxh4 {[%clk 0:00:03.4]} 55. Kd4
{[%clk 0:01:09.7]} 55... h3 {[%clk 0:00:04.2]} 56. Ke3 {[%clk 0:01:10.4]} 56...
h2 {[%clk 0:00:05.1]} 57. Kf3 {[%clk 0:01:10.9]} 57... h1=Q+ {[%clk 0:00:06]}
58. Kf4 {[%clk 0:01:11.2]} 58... Ke6 {[%clk 0:00:06.9]} 59. Ke3 {[%clk
0:01:11.4]} 59... Qg1+ {[%clk 0:00:07.8]} 60. Kf4 {[%clk 0:01:11.2]} 60... Kf6
{[%clk 0:00:07.7]} 61. Kf3 {[%clk 0:01:11.4]} 61... Ke6 {[%clk 0:00:08.6]} 62.
Kf4 {[%clk 0:01:11.6]} 62... Qf2+ {[%clk 0:00:08.9]} 63. Kg4 {[%clk 0:01:11.4]}
63... Ke5 {[%clk 0:00:09.8]} 0-1

[Event "*** Titled Tuesday Blitz"]
[Site "Chess.com"]
[Date "2020.04.28"]
[Round "2"]
[White "secretsuperstar7"]
[Black "Artem_Koval"]
[Result "1/2-1/2"]
[WhiteElo "2190"]
[BlackElo "2418"]
[TimeControl "180+1"]
[EndTime "10:18:05 PDT"]
[Termination "Game drawn by repetition"]

1. d4 {[%clk 0:03:00.9]} 1... d5 {[%clk 0:02:58.2]} 2. c4 {[%clk 0:03:00.9]}
2... e5 {[%clk 0:02:58]} 3. dxe5 {[%clk 0:03:00.1]} 3... d4 {[%clk 0:02:58.9]}
4. a3 {[%clk 0:02:59.1]} 4... Nc6 {[%clk 0:02:59]} 5. Nf3 {[%clk 0:02:58.9]}
5... Nge7 {[%clk 0:02:59.1]} 6. b4 {[%clk 0:02:58.1]} 6... Ng6 {[%clk
0:02:59.2]} 7. Bb2 {[%clk 0:02:58.3]} 7... Ngxe5 {[%clk 0:02:56.8]} 8. Nxe5
{[%clk 0:02:47.7]} 8... Nxe5 {[%clk 0:02:57.7]} 9. e3 {[%clk 0:02:47.7]} 9...
Be6 {[%clk 0:02:57]} 10. Qc2 {[%clk 0:01:50]} 10... c5 {[%clk 0:02:41.2]} 11.
Qe4 {[%clk 0:01:38.9]} 11... Bd6 {[%clk 0:01:36.3]} 12. bxc5 {[%clk 0:01:07.4]}
12... f5 {[%clk 0:01:14.4]} 13. Qxd4 {[%clk 0:00:32.9]} 13... Bc7 {[%clk
0:01:13.9]} 14. f4 {[%clk 0:00:20.1]} 14... Nxc4 {[%clk 0:00:57.2]} 15. Qxg7
{[%clk 0:00:12.2]} 15... Rg8 {[%clk 0:00:56.5]} 16. Qd4 {[%clk 0:00:11]} 16...
Nxb2 {[%clk 0:00:52.1]} 17. Qxb2 {[%clk 0:00:10.7]} 17... Ba5+ {[%clk
0:00:52.2]} 18. Nd2 {[%clk 0:00:10.7]} 18... Qd5 {[%clk 0:00:46.6]} 19. Qb5+
{[%clk 0:00:09.8]} 19... Kf7 {[%clk 0:00:39.3]} 20. Qxa5 {[%clk 0:00:09.6]}
20... Rad8 {[%clk 0:00:39.3]} 21. Rd1 {[%clk 0:00:06.1]} 21... Rxg2 {[%clk
0:00:22.2]} 22. Bxg2 {[%clk 0:00:04.4]} 22... Qxg2 {[%clk 0:00:23.1]} 23. Rf1
{[%clk 0:00:04.3]} 23... Qxh2 {[%clk 0:00:23.1]} 24. Rf2 {[%clk 0:00:03]} 24...
Qh1+ {[%clk 0:00:21.9]} 25. Nf1 {[%clk 0:00:03.2]} 25... Rxd1+ {[%clk
0:00:17.8]} 26. Kxd1 {[%clk 0:00:04.1]} 26... Qe4 {[%clk 0:00:15.9]} 27. Nd2
{[%clk 0:00:04.1]} 27... Qxe3 {[%clk 0:00:14.7]} 28. Qc7+ {[%clk 0:00:04.1]}
28... Kf8 {[%clk 0:00:11.8]} 29. Re2 {[%clk 0:00:04.2]} 29... Bb3+ {[%clk
0:00:08.7]} 30. Nxb3 {[%clk 0:00:02.8]} 30... Qxb3+ {[%clk 0:00:09.6]} 31. Ke1
{[%clk 0:00:03.2]} 31... Qg3+ {[%clk 0:00:09]} 32. Kf1 {[%clk 0:00:02.9]} 32...
Qf3+ {[%clk 0:00:07.6]} 33. Rf2 {[%clk 0:00:03]} 33... Qd1+ {[%clk 0:00:07.6]}
34. Kg2 {[%clk 0:00:03.2]} 34... Qg4+ {[%clk 0:00:08.5]} 35. Kf1 {[%clk
0:00:03.5]} 35... Qd1+ {[%clk 0:00:08.5]} 36. Kg2 {[%clk 0:00:03.7]} 36... Qg4+
{[%clk 0:00:09.4]} 37. Kf1 {[%clk 0:00:04]} 37... Qd1+ {[%clk 0:00:09.6]}
1/2-1/2

[Event "*** Titled Tuesday Blitz"]
[Site "Chess.com"]
[Date "2020.04.28"]
[Round "2"]
[White "Popopuiyt"]
[Black "canary2016"]
[Result "1-0"]
[WhiteElo "2355"]
[BlackElo "1856"]
[TimeControl "180+1"]
[EndTime "10:18:05 PDT"]
[Termination "Popopuiyt won by resignation"]

1. d4 {[%clk 0:02:54.2]} 1... d5 {[%clk 0:02:59.5]} 2. c4 {[%clk 0:02:53]} 2...
c6 {[%clk 0:02:58.4]} 3. Nf3 {[%clk 0:02:49.7]} 3... Nf6 {[%clk 0:02:58]} 4. Nc3
{[%clk 0:02:50.2]} 4... e6 {[%clk 0:02:57.9]} 5. Bg5 {[%clk 0:02:49.9]} 5...
Nbd7 {[%clk 0:02:57.6]} 6. e3 {[%clk 0:02:49.4]} 6... Qa5 {[%clk 0:02:57.3]} 7.
cxd5 {[%clk 0:02:47.5]} 7... exd5 {[%clk 0:02:56.5]} 8. Bd3 {[%clk 0:02:46.6]}
8... Ne4 {[%clk 0:02:50.5]} 9. O-O {[%clk 0:02:30.2]} 9... Nxg5 {[%clk
0:02:48.5]} 10. Nxg5 {[%clk 0:02:30.5]} 10... Nf6 {[%clk 0:02:48.4]} 11. a3
{[%clk 0:02:29.3]} 11... Bd6 {[%clk 0:02:46.7]} 12. Rc1 {[%clk 0:02:27.6]} 12...
O-O {[%clk 0:02:43.6]} 13. b4 {[%clk 0:02:26.7]} 13... Qd8 {[%clk 0:02:40.4]}
14. h3 {[%clk 0:02:10.9]} 14... h6 {[%clk 0:02:40.3]} 15. Nf3 {[%clk 0:02:11.1]}
15... Qe7 {[%clk 0:02:39.5]} 16. Na4 {[%clk 0:02:10]} 16... Rd8 {[%clk
0:02:28.9]} 17. Nc5 {[%clk 0:02:10]} 17... b6 {[%clk 0:02:26.5]} 18. Nb3 {[%clk
0:02:10]} 18... Bb7 {[%clk 0:02:26.2]} 19. Qd2 {[%clk 0:01:58.8]} 19... Rac8
{[%clk 0:02:25.2]} 20. Qb2 {[%clk 0:01:56.9]} 20... Ne4 {[%clk 0:02:18.5]} 21.
Ne5 {[%clk 0:01:43.7]} 21... Nf6 {[%clk 0:02:09.1]} 22. f4 {[%clk 0:01:42.4]}
22... Nd7 {[%clk 0:02:06.4]} 23. Bf5 {[%clk 0:01:42]} 23... g6 {[%clk
0:02:01.8]} 24. Bxd7 {[%clk 0:01:41]} 24... Rxd7 {[%clk 0:02:00.3]} 25. Nxd7
{[%clk 0:01:41]} 25... Qxd7 {[%clk 0:02:00.4]} 26. f5 {[%clk 0:01:39.7]} 26...
g5 {[%clk 0:01:56.9]} 27. Qe2 {[%clk 0:01:31.8]} 27... Qe7 {[%clk 0:01:50.9]}
28. Rfe1 {[%clk 0:01:28.5]} 28... Qe4 {[%clk 0:01:42.2]} 29. Qf3 {[%clk
0:01:25.7]} 29... Qe7 {[%clk 0:01:36]} 30. e4 {[%clk 0:01:23.8]} 30... dxe4
{[%clk 0:01:32.8]} 31. Rxe4 {[%clk 0:01:23.9]} 31... Qf6 {[%clk 0:01:32.6]} 32.
Rce1 {[%clk 0:01:20.1]} 32... Kf8 {[%clk 0:01:26]} 33. Qe3 {[%clk 0:01:16.1]}
33... Kg7 {[%clk 0:01:23.8]} 34. Re8 {[%clk 0:01:14.7]} 34... Rxe8 {[%clk
0:01:23]} 35. Qxe8 {[%clk 0:01:15]} 35... Qxf5 {[%clk 0:01:17.3]} 36. Rf1 {[%clk
0:01:11.4]} 36... Qe6 {[%clk 0:01:10.9]} 37. Qxe6 {[%clk 0:01:08.7]} 37... fxe6
{[%clk 0:01:10.5]} 38. Kf2 {[%clk 0:01:05.7]} 38... Kf7 {[%clk 0:01:04.2]} 39.
Ke3+ {[%clk 0:01:04.6]} 39... Ke7 {[%clk 0:01:04.2]} 40. Nd2 {[%clk 0:00:59.5]}
40... Bf4+ {[%clk 0:01:03]} 41. Kd3 {[%clk 0:00:56.6]} 41... Kd6 {[%clk
0:00:58.4]} 42. Ne4+ {[%clk 0:00:51]} 42... Ke7 {[%clk 0:00:53.9]} 43. Nd2
{[%clk 0:00:49.9]} 43... Kd6 {[%clk 0:00:52.8]} 44. Nc4+ {[%clk 0:00:37.4]}
44... Ke7 {[%clk 0:00:52.2]} 45. Re1 {[%clk 0:00:37.1]} 45... Kd7 {[%clk
0:00:44.6]} 46. Ne5+ {[%clk 0:00:36.5]} 46... Ke7 {[%clk 0:00:43.7]} 47. Ng6+
{[%clk 0:00:35.8]} 47... Kf6 {[%clk 0:00:43.8]} 48. Nxf4 {[%clk 0:00:36.7]}
48... gxf4 {[%clk 0:00:43.8]} 49. Re4 {[%clk 0:00:35.4]} 49... c5 {[%clk
0:00:42.3]} 50. Rxf4+ {[%clk 0:00:35.5]} 50... Kg5 {[%clk 0:00:41.4]} 51. g3
{[%clk 0:00:34.6]} 51... cxd4 {[%clk 0:00:37.3]} 52. Kxd4 {[%clk 0:00:33.9]}
52... Bd5 {[%clk 0:00:34.9]} 53. Ke5 {[%clk 0:00:33.5]} 53... a5 {[%clk
0:00:28.8]} 54. Rg4+ {[%clk 0:00:33.8]} 54... Kh5 {[%clk 0:00:27.6]} 55. Kf6
{[%clk 0:00:34]} 1-0

[Event "*** Titled Tuesday Blitz"]
[Site "Chess.com"]
[Date "2020.04.28"]
[Round "2"]
[White "BaMBoMaTTo"]
[Black "ItsCheckM8Mate"]
[Result "1-0"]
[WhiteElo "2631"]
[BlackElo "2259"]
[TimeControl "180+1"]
[EndTime "10:18:06 PDT"]
[Termination "BaMBoMaTTo won by resignation"]

1. d4 {[%clk 0:03:00.1]} 1... Nf6 {[%clk 0:02:59.1]} 2. c4 {[%clk 0:02:59.6]}
2... e6 {[%clk 0:02:59.2]} 3. Nf3 {[%clk 0:02:59.1]} 3... d5 {[%clk 0:02:59.1]}
4. Nc3 {[%clk 0:02:58.9]} 4... Bb4 {[%clk 0:02:58.9]} 5. e3 {[%clk 0:02:57.6]}
5... O-O {[%clk 0:02:56.2]} 6. Bd2 {[%clk 0:02:57.7]} 6... b6 {[%clk 0:02:41.1]}
7. cxd5 {[%clk 0:02:56]} 7... exd5 {[%clk 0:02:41.1]} 8. Rc1 {[%clk 0:02:55.9]}
8... a6 {[%clk 0:02:40.8]} 9. Bd3 {[%clk 0:02:51.6]} 9... Bb7 {[%clk 0:02:39.3]}
10. O-O {[%clk 0:02:51.6]} 10... Nbd7 {[%clk 0:02:36.9]} 11. Ne5 {[%clk
0:02:51.7]} 11... Bd6 {[%clk 0:02:32.8]} 12. f4 {[%clk 0:02:51.5]} 12... c5
{[%clk 0:02:31.9]} 13. Qf3 {[%clk 0:02:51.2]} 13... Re8 {[%clk 0:02:09.7]} 14.
Be1 {[%clk 0:02:50.6]} 14... Ne4 {[%clk 0:02:07.7]} 15. Nxe4 {[%clk 0:02:26.1]}
15... dxe4 {[%clk 0:02:01.5]} 16. Bxe4 {[%clk 0:02:27]} 16... Bxe4 {[%clk
0:01:43.5]} 17. Qxe4 {[%clk 0:02:27.9]} 17... cxd4 {[%clk 0:01:41.1]} 18. exd4
{[%clk 0:02:28.8]} 18... Nf6 {[%clk 0:01:20.5]} 19. Qb7 {[%clk 0:02:28]} 19...
Bxe5 {[%clk 0:01:08.6]} 20. dxe5 {[%clk 0:02:28.9]} 20... Ng4 {[%clk 0:00:42.3]}
21. Qf3 {[%clk 0:02:10.2]} 21... Qd7 {[%clk 0:00:41.8]} 22. Rd1 {[%clk
0:02:03.3]} 22... Qf5 {[%clk 0:00:38.4]} 23. h3 {[%clk 0:01:50]} 23... Nh6
{[%clk 0:00:37.8]} 24. g4 {[%clk 0:01:45.1]} 24... Qe6 {[%clk 0:00:37.7]} 25. a3
{[%clk 0:01:22.2]} 25... Rac8 {[%clk 0:00:37.4]} 26. Rd6 {[%clk 0:01:09.6]}
26... Qe7 {[%clk 0:00:29.6]} 27. Bc3 {[%clk 0:01:04.2]} 27... Qc7 {[%clk
0:00:22.8]} 28. Rfd1 {[%clk 0:01:03.2]} 28... b5 {[%clk 0:00:18.1]} 29. Rd7
{[%clk 0:00:55.4]} 29... Qc5+ {[%clk 0:00:17.7]} 30. Qf2 {[%clk 0:00:51.5]}
30... Qxf2+ {[%clk 0:00:16.5]} 31. Kxf2 {[%clk 0:00:52.4]} 31... Kf8 {[%clk
0:00:16.4]} 32. Ra7 {[%clk 0:00:50.1]} 32... Rc6 {[%clk 0:00:16]} 33. Rdd7
{[%clk 0:00:49.3]} 33... Rc4 {[%clk 0:00:11.2]} 34. Kf3 {[%clk 0:00:43.3]} 34...
Kg8 {[%clk 0:00:10.5]} 35. Rxa6 {[%clk 0:00:37.2]} 35... g6 {[%clk 0:00:06.8]}
36. Rb6 {[%clk 0:00:30.3]} 36... Rc5 {[%clk 0:00:06.4]} 37. Rbb7 {[%clk
0:00:30.7]} 37... Rf8 {[%clk 0:00:05.3]} 38. Bb4 {[%clk 0:00:30.4]} 1-0

[Event "*** Titled Tuesday Blitz"]
[Site "Chess.com"]
[Date "2020.04.28"]
[Round "2"]
[White "IMTominho"]
[Black "wadsy27"]
[Result "1-0"]
[WhiteElo "2805"]
[BlackElo "2531"]
[TimeControl "180+1"]
[EndTime "10:18:08 PDT"]
[Termination "IMTominho won by resignation"]

1. d4 {[%clk 0:03:00.9]} 1... Nf6 {[%clk 0:02:50.7]} 2. Bg5 {[%clk 0:02:59.3]}
2... c5 {[%clk 0:02:50.2]} 3. Bxf6 {[%clk 0:02:59.4]} 3... gxf6 {[%clk
0:02:49.4]} 4. d5 {[%clk 0:02:56.4]} 4... Qb6 {[%clk 0:02:48.9]} 5. Qc1 {[%clk
0:02:54.7]} 5... Bh6 {[%clk 0:02:44.6]} 6. e3 {[%clk 0:02:54.2]} 6... d6 {[%clk
0:02:44.7]} 7. Nf3 {[%clk 0:02:48.3]} 7... Nd7 {[%clk 0:02:44.5]} 8. Be2 {[%clk
0:02:46.6]} 8... f5 {[%clk 0:02:42.8]} 9. O-O {[%clk 0:02:45.9]} 9... Nf6 {[%clk
0:02:42.1]} 10. Rd1 {[%clk 0:02:42.3]} 10... Bd7 {[%clk 0:02:41.4]} 11. a4
{[%clk 0:02:41.9]} 11... a6 {[%clk 0:02:38.5]} 12. Na3 {[%clk 0:02:32.4]} 12...
Qc7 {[%clk 0:02:35.8]} 13. Nc4 {[%clk 0:02:30]} 13... O-O {[%clk 0:02:26]} 14.
a5 {[%clk 0:02:24]} 14... Kh8 {[%clk 0:02:13.2]} 15. Qd2 {[%clk 0:02:15.2]}
15... Ne4 {[%clk 0:02:06]} 16. Qe1 {[%clk 0:02:14.1]} 16... Bg7 {[%clk
0:02:00.1]} 17. Rab1 {[%clk 0:02:10.4]} 17... Rg8 {[%clk 0:01:55]} 18. g3 {[%clk
0:02:07.8]} 18... Bf6 {[%clk 0:01:48.3]} 19. Bd3 {[%clk 0:02:00.6]} 19... Bb5
{[%clk 0:01:44.2]} 20. Nb6 {[%clk 0:01:22.2]} 20... Rae8 {[%clk 0:01:27.4]} 21.
Qe2 {[%clk 0:01:17.8]} 21... Bxd3 {[%clk 0:01:11.5]} 22. cxd3 {[%clk 0:01:18.7]}
22... Ng5 {[%clk 0:01:11.3]} 23. Nxg5 {[%clk 0:01:14.5]} 23... Rxg5 {[%clk
0:01:10.4]} 24. Rdc1 {[%clk 0:01:08.3]} 24... e5 {[%clk 0:00:49.1]} 25. b4
{[%clk 0:01:01.3]} 25... Reg8 {[%clk 0:00:44.3]} 26. bxc5 {[%clk 0:00:57]} 26...
dxc5 {[%clk 0:00:45.2]} 27. Nc4 {[%clk 0:00:52.6]} 27... f4 {[%clk 0:00:42]} 28.
exf4 {[%clk 0:00:49.1]} 28... exf4 {[%clk 0:00:41.3]} 29. Qf3 {[%clk 0:00:46.5]}
29... Bd4 {[%clk 0:00:37.1]} 30. d6 {[%clk 0:00:42.6]} 30... Qc6 {[%clk
0:00:23.2]} 31. Qxf4 {[%clk 0:00:36.9]} 31... Qd5 {[%clk 0:00:20.4]} 32. Qe4
{[%clk 0:00:32.7]} 32... Qf5 {[%clk 0:00:12.3]} 33. Qxf5 {[%clk 0:00:30.3]}
33... Rxf5 {[%clk 0:00:13.2]} 34. Rc2 {[%clk 0:00:30]} 34... h5 {[%clk
0:00:09.8]} 35. Rxb7 {[%clk 0:00:28.1]} 35... h4 {[%clk 0:00:10.1]} 36. Kg2
{[%clk 0:00:28.1]} 36... hxg3 {[%clk 0:00:09.9]} 37. hxg3 {[%clk 0:00:29]} 37...
Rd5 {[%clk 0:00:09.2]} 38. Re2 {[%clk 0:00:27.8]} 38... f5 {[%clk 0:00:08.9]}
39. Re6 {[%clk 0:00:25.7]} 39... Bg7 {[%clk 0:00:08]} 40. d7 {[%clk 0:00:22.8]}
40... f4 {[%clk 0:00:07.2]} 41. Re8 {[%clk 0:00:21.9]} 41... Bf6 {[%clk
0:00:05.9]} 42. Rbb8 {[%clk 0:00:18.1]} 1-0

[Event "*** Titled Tuesday Blitz"]
[Site "Chess.com"]
[Date "2020.04.28"]
[Round "2"]
[White "PIwan"]
[Black "WIDBIFS"]
[Result "0-1"]
[WhiteElo "2539"]
[BlackElo "2837"]
[TimeControl "180+1"]
[EndTime "10:18:09 PDT"]
[Termination "WIDBIFS won on time"]

1. c4 {[%clk 0:03:00.9]} 1... Nf6 {[%clk 0:02:59.5]} 2. Nc3 {[%clk 0:03:01.3]}
2... g6 {[%clk 0:02:59.6]} 3. e4 {[%clk 0:03:01.5]} 3... d6 {[%clk 0:02:58.9]}
4. d4 {[%clk 0:03:01.9]} 4... Bg7 {[%clk 0:02:59.4]} 5. f3 {[%clk 0:03:02.5]}
5... O-O {[%clk 0:02:59.2]} 6. Bg5 {[%clk 0:03:03]} 6... Na6 {[%clk 0:02:53]} 7.
Qd2 {[%clk 0:03:00.7]} 7... e5 {[%clk 0:02:53.3]} 8. d5 {[%clk 0:02:44.7]} 8...
c6 {[%clk 0:02:51.7]} 9. Nge2 {[%clk 0:02:40.8]} 9... cxd5 {[%clk 0:02:51.6]}
10. cxd5 {[%clk 0:02:41.7]} 10... Bd7 {[%clk 0:02:51]} 11. Nc1 {[%clk
0:02:38.8]} 11... Rc8 {[%clk 0:02:46.8]} 12. Nb3 {[%clk 0:02:31.2]} 12... Nc5
{[%clk 0:02:37.6]} 13. Nxc5 {[%clk 0:02:29.5]} 13... Rxc5 {[%clk 0:02:38.5]} 14.
Be3 {[%clk 0:02:28.1]} 14... Rc8 {[%clk 0:02:37.9]} 15. Be2 {[%clk 0:02:21.1]}
15... a6 {[%clk 0:02:36.8]} 16. O-O {[%clk 0:02:16]} 16... Nh5 {[%clk
0:02:37.2]} 17. Rac1 {[%clk 0:01:54.9]} 17... Nf4 {[%clk 0:02:34.3]} 18. b4
{[%clk 0:01:38.6]} 18... Qg5 {[%clk 0:01:56.9]} 19. g3 {[%clk 0:01:29.5]} 19...
Bh3 {[%clk 0:01:29.2]} 20. Rfe1 {[%clk 0:01:19]} 20... Nxe2+ {[%clk 0:01:23.6]}
21. Nxe2 {[%clk 0:01:19.9]} 21... Qf6 {[%clk 0:01:15.6]} 22. Kf2 {[%clk
0:01:06.6]} 22... Qe7 {[%clk 0:01:15.8]} 23. Rxc8 {[%clk 0:01:05.1]} 23... Bxc8
{[%clk 0:01:12.7]} 24. Rc1 {[%clk 0:01:05.6]} 24... f5 {[%clk 0:01:12.7]} 25.
exf5 {[%clk 0:00:59.8]} 25... Bxf5 {[%clk 0:01:07.1]} 26. Bh6 {[%clk 0:00:43.8]}
26... Be4 {[%clk 0:00:44.2]} 27. Ng1 {[%clk 0:00:20.8]} 27... Bxh6 {[%clk
0:00:43.5]} 28. Qxh6 {[%clk 0:00:21.7]} 28... Bxd5 {[%clk 0:00:43.6]} 29. Qd2
{[%clk 0:00:18.2]} 29... Bc6 {[%clk 0:00:43.4]} 30. Rd1 {[%clk 0:00:18]} 30...
d5 {[%clk 0:00:41.4]} 31. Re1 {[%clk 0:00:17.9]} 31... Qf6 {[%clk 0:00:33.3]}
32. Qe3 {[%clk 0:00:14.9]} 32... e4 {[%clk 0:00:33.5]} 33. f4 {[%clk 0:00:04.9]}
33... d4 {[%clk 0:00:32.9]} 34. Qb3+ {[%clk 0:00:02.2]} 34... Kg7 {[%clk
0:00:32.4]} 35. Ne2 {[%clk 0:00:02.5]} 35... e3+ {[%clk 0:00:30.7]} 36. Kg1
{[%clk 0:00:02.7]} 36... Rd8 {[%clk 0:00:23.5]} 37. Rd1 {[%clk 0:00:01.1]} 37...
Bf3 {[%clk 0:00:19.8]} 0-1